[Event "Late-Titled-Tuesday-Blitz-June-18-2024"]
[Site "Chess.com"]
[Date "2024.06.18"]
[Round "9"]
[White "evgchess5"]
[Black "Polish_fighter3000"]
[Result "0-1"]
[WhiteElo "2928"]
[BlackElo "3093"]
[TimeControl "180+1"]
[EndTime "15:45:11 PDT"]
[Termination "Polish_fighter3000 won on time"]

1. e4 {[%clk 0:02:59.6]} 1... c6 {[%clk 0:02:52.5]} 2. d4 {[%clk 0:02:57.4]}
2... d5 {[%clk 0:02:53]} 3. e5 {[%clk 0:02:56.1]} 3... Bf5 {[%clk 0:02:51.6]} 4.
h4 {[%clk 0:02:56]} 4... h5 {[%clk 0:02:51]} 5. c4 {[%clk 0:02:56]} 5... e6
{[%clk 0:02:50.3]} 6. Nc3 {[%clk 0:02:55.9]} 6... Ne7 {[%clk 0:02:37.5]} 7. Nge2
{[%clk 0:02:54.5]} 7... dxc4 {[%clk 0:02:35.2]} 8. Ng3 {[%clk 0:02:53.6]} 8...
Bg4 {[%clk 0:02:34]} 9. f3 {[%clk 0:02:42.7]} 9... Bf5 {[%clk 0:02:33.7]} 10.
Bg5 {[%clk 0:02:26.8]} 10... Qb6 {[%clk 0:02:28.3]} 11. Qd2 {[%clk 0:02:18]}
11... Bg6 {[%clk 0:02:21.9]} 12. Bxc4 {[%clk 0:02:15.3]} 12... Nd7 {[%clk
0:02:19.9]} 13. a3 {[%clk 0:01:49.2]} 13... Nf5 {[%clk 0:02:11.5]} 14. Nxf5
{[%clk 0:01:46.4]} 14... Bxf5 {[%clk 0:02:12.4]} 15. Ne4 {[%clk 0:01:21.9]}
15... a5 {[%clk 0:01:37.5]} 16. O-O-O {[%clk 0:01:16.2]} 16... a4 {[%clk
0:01:33.4]} 17. Rhe1 {[%clk 0:01:13.2]} 17... Qa5 {[%clk 0:01:24.8]} 18. Qxa5
{[%clk 0:00:40.5]} 18... Rxa5 {[%clk 0:01:25.7]} 19. Bd2 {[%clk 0:00:29.7]}
19... Ra8 {[%clk 0:01:25.1]} 20. Bb4 {[%clk 0:00:27.8]} 20... Bxe4 {[%clk
0:01:10.2]} 21. fxe4 {[%clk 0:00:25.2]} 21... Bxb4 {[%clk 0:00:56.4]} 22. axb4
{[%clk 0:00:24.6]} 22... Nb6 {[%clk 0:00:50.2]} 23. Ba2 {[%clk 0:00:21.9]} 23...
a3 {[%clk 0:00:45.3]} 24. Bb3 {[%clk 0:00:19.4]} 24... Rh6 {[%clk 0:00:43]} 25.
Kc2 {[%clk 0:00:11.5]} 25... Rg6 {[%clk 0:00:42.7]} 26. Rg1 {[%clk 0:00:10.9]}
26... axb2 {[%clk 0:00:29.7]} 27. Kxb2 {[%clk 0:00:09.6]} 27... Rg4 {[%clk
0:00:28.9]} 0-1

[Event "Late-Titled-Tuesday-Blitz-June-18-2024"]
[Site "Chess.com"]
[Date "2024.06.18"]
[Round "9"]
[White "schondeln"]
[Black "esskeettit"]
[Result "0-1"]
[WhiteElo "2366"]
[BlackElo "2514"]
[TimeControl "180+1"]
[EndTime "15:45:19 PDT"]
[Termination "esskeettit won by resignation"]

1. e4 {[%clk 0:03:00.9]} 1... c5 {[%clk 0:02:58.4]} 2. Nf3 {[%clk 0:03:00.4]}
2... Nc6 {[%clk 0:02:58.7]} 3. Bb5 {[%clk 0:03:00]} 3... g6 {[%clk 0:02:58.8]}
4. O-O {[%clk 0:02:59.8]} 4... Bg7 {[%clk 0:02:59.1]} 5. Re1 {[%clk 0:02:59.8]}
5... Nf6 {[%clk 0:02:59.3]} 6. e5 {[%clk 0:02:59.9]} 6... Nd5 {[%clk 0:02:59.4]}
7. Nc3 {[%clk 0:03:00.1]} 7... Nc7 {[%clk 0:02:59.2]} 8. Bxc6 {[%clk 0:03:00.3]}
8... dxc6 {[%clk 0:03:00.1]} 9. Ne4 {[%clk 0:02:59.5]} 9... b6 {[%clk
0:02:52.9]} 10. h3 {[%clk 0:02:57.5]} 10... O-O {[%clk 0:02:52.1]} 11. d3 {[%clk
0:02:55.2]} 11... Bf5 {[%clk 0:02:47.2]} 12. Ng3 {[%clk 0:02:42.7]} 12... Be6
{[%clk 0:02:45.6]} 13. a4 {[%clk 0:02:42.6]} 13... Bd5 {[%clk 0:02:39.1]} 14.
Nd2 {[%clk 0:02:34.9]} 14... Qd7 {[%clk 0:02:26.2]} 15. a5 {[%clk 0:02:27.8]}
15... b5 {[%clk 0:02:22.6]} 16. c3 {[%clk 0:02:00.4]} 16... Rad8 {[%clk
0:02:20]} 17. f4 {[%clk 0:01:37.5]} 17... Be6 {[%clk 0:02:12.7]} 18. Nge4 {[%clk
0:01:22.4]} 18... Na6 {[%clk 0:01:48.7]} 19. Re3 {[%clk 0:01:14.6]} 19... Bh6
{[%clk 0:01:30.3]} 20. Qf1 {[%clk 0:01:14]} 20... Bd5 {[%clk 0:01:30.4]} 21. Ng3
{[%clk 0:00:49.7]} 21... f6 {[%clk 0:01:05.2]} 22. c4 {[%clk 0:00:20.3]} 22...
Be6 {[%clk 0:00:55.9]} 23. Ne2 {[%clk 0:00:12]} 23... Bf5 {[%clk 0:00:45.7]} 24.
e6 {[%clk 0:00:08]} 24... Bxe6 {[%clk 0:00:44.6]} 25. Nf3 {[%clk 0:00:07.3]}
25... Bf5 {[%clk 0:00:39.1]} 26. Bd2 {[%clk 0:00:07.5]} 26... Bxd3 {[%clk
0:00:35.9]} 27. Bc3 {[%clk 0:00:07.7]} 27... b4 {[%clk 0:00:34.1]} 28. Rd1
{[%clk 0:00:06.9]} 28... Bxe2 {[%clk 0:00:25.1]} 29. Rxd7 {[%clk 0:00:06.7]}
29... Bxf1 {[%clk 0:00:25.1]} 30. Rxd8 {[%clk 0:00:07]} 30... Rxd8 {[%clk
0:00:25.1]} 31. Kxf1 {[%clk 0:00:06.4]} 31... bxc3 {[%clk 0:00:24.9]} 0-1

[Event "Late-Titled-Tuesday-Blitz-June-18-2024"]
[Site "Chess.com"]
[Date "2024.06.18"]
[Round "9"]
[White "rikchessmx"]
[Black "RamonManon0g"]
[Result "0-1"]
[WhiteElo "2316"]
[BlackElo "2473"]
[TimeControl "180+1"]
[EndTime "15:45:25 PDT"]
[Termination "RamonManon0g won by checkmate"]

1. e4 {[%clk 0:03:00.9]} 1... c5 {[%clk 0:02:59.9]} 2. Nf3 {[%clk 0:03:00.3]}
2... d6 {[%clk 0:03:00.1]} 3. d4 {[%clk 0:03:00.2]} 3... cxd4 {[%clk 0:03:01]}
4. Nxd4 {[%clk 0:03:00]} 4... Nf6 {[%clk 0:03:01.8]} 5. Nc3 {[%clk 0:03:00]}
5... a6 {[%clk 0:03:02.6]} 6. f4 {[%clk 0:02:59.8]} 6... e5 {[%clk 0:03:02]} 7.
Nf3 {[%clk 0:02:59.1]} 7... Nbd7 {[%clk 0:03:02.2]} 8. Bd3 {[%clk 0:02:58.8]}
8... Be7 {[%clk 0:02:59.7]} 9. O-O {[%clk 0:02:58.8]} 9... O-O {[%clk
0:02:59.4]} 10. Kh1 {[%clk 0:02:58]} 10... b5 {[%clk 0:02:59.1]} 11. a3 {[%clk
0:02:56.8]} 11... Bb7 {[%clk 0:02:58.4]} 12. Qe1 {[%clk 0:02:57]} 12... Rc8
{[%clk 0:02:48.4]} 13. fxe5 {[%clk 0:02:55.9]} 13... Nxe5 {[%clk 0:02:45.1]} 14.
Nd4 {[%clk 0:02:54.8]} 14... Nxd3 {[%clk 0:02:39.5]} 15. cxd3 {[%clk 0:02:53.5]}
15... Nd7 {[%clk 0:02:39.3]} 16. Nf5 {[%clk 0:02:52.5]} 16... Ne5 {[%clk
0:02:34.5]} 17. Qg3 {[%clk 0:02:50.8]} 17... Bf6 {[%clk 0:02:33.7]} 18. h4
{[%clk 0:02:40.9]} 18... g6 {[%clk 0:02:25.8]} 19. Nh6+ {[%clk 0:02:31.9]} 19...
Kh8 {[%clk 0:02:25.9]} 20. d4 {[%clk 0:02:30.1]} 20... Bxh4 {[%clk 0:02:23.8]}
21. Qh3 {[%clk 0:02:24.6]} 21... Nc4 {[%clk 0:02:15.7]} 22. Nxf7+ {[%clk
0:02:21.4]} 22... Rxf7 {[%clk 0:02:14.6]} 23. Rxf7 {[%clk 0:02:21.8]} 23... Bc6
{[%clk 0:02:04.4]} 24. g3 {[%clk 0:02:17.4]} 24... Qe8 {[%clk 0:01:57.4]} 25.
gxh4 {[%clk 0:02:08.2]} 25... Qxf7 {[%clk 0:01:39]} 26. Qxc8+ {[%clk 0:02:07.1]}
26... Be8 {[%clk 0:01:39.4]} 27. Qg4 {[%clk 0:02:00.3]} 27... Qf1+ {[%clk
0:01:33.3]} 28. Kh2 {[%clk 0:01:54.6]} 28... Qf2+ {[%clk 0:01:32.4]} 29. Qg2
{[%clk 0:01:54.5]} 29... Qxh4+ {[%clk 0:01:32.3]} 30. Kg1 {[%clk 0:01:52.7]}
30... Qe1+ {[%clk 0:01:32.4]} 31. Qf1 {[%clk 0:01:52.4]} 31... Qg3+ {[%clk
0:01:31.1]} 32. Kh1 {[%clk 0:01:52]} 32... Qh4+ {[%clk 0:01:30.8]} 33. Kg2
{[%clk 0:01:51.9]} 33... Qg4+ {[%clk 0:01:28.7]} 34. Kh2 {[%clk 0:01:51.8]}
34... Qh4+ {[%clk 0:01:25]} 35. Qh3 {[%clk 0:01:50.9]} 35... Qf2+ {[%clk
0:01:24.6]} 36. Qg2 {[%clk 0:01:50.7]} 36... Qh4+ {[%clk 0:01:24.4]} 37. Qh3
{[%clk 0:01:50.4]} 37... Qf2+ {[%clk 0:01:24.5]} 38. Kh1 {[%clk 0:01:50.4]}
38... Qe1+ {[%clk 0:01:24.3]} 39. Kg2 {[%clk 0:01:50.7]} 39... Bf7 {[%clk
0:01:04]} 40. Qg3 {[%clk 0:01:44.3]} 40... Qxg3+ {[%clk 0:00:46]} 41. Kxg3
{[%clk 0:01:43.9]} 41... Kg7 {[%clk 0:00:40.2]} 42. a4 {[%clk 0:01:42.3]} 42...
b4 {[%clk 0:00:39.8]} 43. Nd5 {[%clk 0:01:42.2]} 43... a5 {[%clk 0:00:36.7]} 44.
b3 {[%clk 0:01:40.3]} 44... Bxd5 {[%clk 0:00:31]} 45. bxc4 {[%clk 0:01:39.4]}
45... Bxc4 {[%clk 0:00:27.2]} 46. Bb2 {[%clk 0:01:39.7]} 46... g5 {[%clk
0:00:20.5]} 47. Kg4 {[%clk 0:01:37.1]} 47... Kg6 {[%clk 0:00:20.2]} 48. Kg3
{[%clk 0:01:34.7]} 48... h5 {[%clk 0:00:21.1]} 49. Rc1 {[%clk 0:01:31.5]} 49...
h4+ {[%clk 0:00:22]} 50. Kh3 {[%clk 0:01:30.6]} 50... Be6+ {[%clk 0:00:21.5]}
51. Kh2 {[%clk 0:01:29.9]} 51... g4 {[%clk 0:00:20.5]} 52. d5 {[%clk 0:01:28.9]}
52... g3+ {[%clk 0:00:21.4]} 53. Kg2 {[%clk 0:01:28.4]} 53... Bd7 {[%clk
0:00:20.4]} 54. Rc6 {[%clk 0:01:24.8]} 54... Kg5 {[%clk 0:00:18.7]} 55. Rxd6
{[%clk 0:01:22.1]} 55... Bg4 {[%clk 0:00:17.3]} 56. Bc1+ {[%clk 0:01:19.8]}
56... Kh5 {[%clk 0:00:16.2]} 57. Ra6 {[%clk 0:01:18.4]} 57... Bd1 {[%clk
0:00:13]} 58. Rxa5 {[%clk 0:01:17.9]} 58... Kg4 {[%clk 0:00:13.3]} 59. Ra7
{[%clk 0:01:12.5]} 59... h3+ {[%clk 0:00:13.5]} 60. Kg1 {[%clk 0:01:12.6]} 60...
h2+ {[%clk 0:00:13.8]} 61. Kg2 {[%clk 0:01:11.8]} 61... Bf3+ {[%clk 0:00:13.9]}
62. Kf1 {[%clk 0:01:11.9]} 62... h1=Q# {[%clk 0:00:14.5]} 0-1

[Event "Late-Titled-Tuesday-Blitz-June-18-2024"]
[Site "Chess.com"]
[Date "2024.06.18"]
[Round "9"]
[White "JoakimVonAnd"]
[Black "ArmanGhevondyanchess"]
[Result "0-1"]
[WhiteElo "2735"]
[BlackElo "2605"]
[TimeControl "180+1"]
[EndTime "15:45:28 PDT"]
[Termination "ArmanGhevondyanchess won by checkmate"]

1. d4 {[%clk 0:03:00.9]} 1... Nf6 {[%clk 0:02:59.9]} 2. c4 {[%clk 0:03:00.7]}
2... g6 {[%clk 0:03:00.4]} 3. Nc3 {[%clk 0:03:00.7]} 3... d5 {[%clk 0:03:00.9]}
4. Bf4 {[%clk 0:02:59.5]} 4... Bg7 {[%clk 0:03:01.2]} 5. e3 {[%clk 0:02:58.4]}
5... O-O {[%clk 0:03:01.4]} 6. Rc1 {[%clk 0:02:57.5]} 6... c5 {[%clk 0:02:52.5]}
7. dxc5 {[%clk 0:02:58.4]} 7... dxc4 {[%clk 0:02:49.8]} 8. Qxd8 {[%clk
0:02:54.3]} 8... Rxd8 {[%clk 0:02:50.7]} 9. Bxc4 {[%clk 0:02:54.4]} 9... Nc6
{[%clk 0:02:45.9]} 10. Nf3 {[%clk 0:02:52.1]} 10... Bf5 {[%clk 0:02:41.4]} 11.
O-O {[%clk 0:02:43]} 11... Rac8 {[%clk 0:02:39.5]} 12. a3 {[%clk 0:02:40]} 12...
a5 {[%clk 0:02:29.6]} 13. Na4 {[%clk 0:02:36.9]} 13... Nh5 {[%clk 0:01:13]} 14.
Nb6 {[%clk 0:02:25.9]} 14... Nxf4 {[%clk 0:01:11.5]} 15. Nxc8 {[%clk 0:02:24.3]}
15... Ne6 {[%clk 0:00:54.4]} 16. Nb6 {[%clk 0:02:19.4]} 16... Bxb2 {[%clk
0:00:50.8]} 17. Rcd1 {[%clk 0:02:19.5]} 17... Bxa3 {[%clk 0:00:47.8]} 18. Rxd8+
{[%clk 0:02:07.4]} 18... Ncxd8 {[%clk 0:00:48.7]} 19. Nd4 {[%clk 0:01:57.5]}
19... Bxc5 {[%clk 0:00:35.3]} 20. Nxf5 {[%clk 0:01:50.4]} 20... gxf5 {[%clk
0:00:32.3]} 21. Nd7 {[%clk 0:01:48.2]} 21... Bb4 {[%clk 0:00:27]} 22. Bd5 {[%clk
0:01:42.3]} 22... Nc7 {[%clk 0:00:19.2]} 23. Bf3 {[%clk 0:01:32]} 23... b5
{[%clk 0:00:16.6]} 24. Rc1 {[%clk 0:01:31.7]} 24... Bd6 {[%clk 0:00:16.5]} 25.
Nb6 {[%clk 0:01:27.8]} 25... a4 {[%clk 0:00:14.8]} 26. Nc8 {[%clk 0:01:26.9]}
26... Nde6 {[%clk 0:00:15.4]} 27. Nxd6 {[%clk 0:01:17.3]} 27... exd6 {[%clk
0:00:16.3]} 28. Bc6 {[%clk 0:01:17]} 28... a3 {[%clk 0:00:14.9]} 29. Kf1 {[%clk
0:01:09.4]} 29... b4 {[%clk 0:00:15.2]} 30. Ba4 {[%clk 0:01:05.8]} 30... Nc5
{[%clk 0:00:15.5]} 31. Bd1 {[%clk 0:00:43.2]} 31... b3 {[%clk 0:00:13.8]} 32.
Rxc5 {[%clk 0:00:25.4]} 32... b2 {[%clk 0:00:12.1]} 33. Bb3 {[%clk 0:00:26.3]}
33... b1=Q+ {[%clk 0:00:11]} 34. Ke2 {[%clk 0:00:21.4]} 34... dxc5 {[%clk
0:00:10.7]} 35. Bc4 {[%clk 0:00:20.3]} 35... Qc2+ {[%clk 0:00:10.7]} 36. Kf3
{[%clk 0:00:20.8]} 36... Qxc4 {[%clk 0:00:11.6]} 37. Kg3 {[%clk 0:00:21]} 37...
Qg4# {[%clk 0:00:11.6]} 0-1

[Event "Late-Titled-Tuesday-Blitz-June-18-2024"]
[Site "Chess.com"]
[Date "2024.06.18"]
[Round "9"]
[White "Mikhail_Golubev"]
[Black "harshu27"]
[Result "1-0"]
[WhiteElo "2679"]
[BlackElo "2562"]
[TimeControl "180+1"]
[EndTime "15:45:32 PDT"]
[Termination "Mikhail_Golubev won on time"]

1. e4 {[%clk 0:03:00.9]} 1... e5 {[%clk 0:02:58.7]} 2. Nf3 {[%clk 0:03:00.8]}
2... Nc6 {[%clk 0:02:58.6]} 3. Bc4 {[%clk 0:03:01.3]} 3... Nf6 {[%clk
0:02:58.2]} 4. d3 {[%clk 0:03:00.5]} 4... Bc5 {[%clk 0:02:58.2]} 5. c3 {[%clk
0:02:59.8]} 5... a5 {[%clk 0:02:52.4]} 6. Nbd2 {[%clk 0:02:55.6]} 6... O-O
{[%clk 0:02:51.6]} 7. O-O {[%clk 0:02:50.5]} 7... d5 {[%clk 0:02:51.3]} 8. exd5
{[%clk 0:02:46.3]} 8... Nxd5 {[%clk 0:02:52.2]} 9. Ne4 {[%clk 0:02:42]} 9... Ba7
{[%clk 0:02:33.8]} 10. Bg5 {[%clk 0:02:20.2]} 10... f6 {[%clk 0:02:23.2]} 11.
Qb3 {[%clk 0:02:06.3]} 11... Be6 {[%clk 0:02:12.4]} 12. Qxb7 {[%clk 0:02:04.8]}
12... Qd7 {[%clk 0:02:03.6]} 13. Bb5 {[%clk 0:01:23.5]} 13... Nde7 {[%clk
0:01:59.3]} 14. Bxf6 {[%clk 0:01:12.3]} 14... gxf6 {[%clk 0:01:38.5]} 15. Nxf6+
{[%clk 0:01:07.9]} 15... Rxf6 {[%clk 0:01:38.1]} 16. Qxa8+ {[%clk 0:01:07.7]}
16... Rf8 {[%clk 0:01:36.4]} 17. Qxa7 {[%clk 0:00:59.6]} 17... Nxa7 {[%clk
0:00:36.7]} 18. Bxd7 {[%clk 0:00:58.7]} 18... Bxd7 {[%clk 0:00:37.6]} 19. Nxe5
{[%clk 0:00:58.8]} 19... Bf5 {[%clk 0:00:35.5]} 20. Rfe1 {[%clk 0:00:52.4]}
20... Nd5 {[%clk 0:00:33.7]} 21. d4 {[%clk 0:00:45.9]} 21... Nf4 {[%clk
0:00:14.2]} 22. a4 {[%clk 0:00:41.9]} 22... Rb8 {[%clk 0:00:13.3]} 23. b4 {[%clk
0:00:25.5]} 23... axb4 {[%clk 0:00:12.2]} 24. cxb4 {[%clk 0:00:26.4]} 24... Rxb4
{[%clk 0:00:11.9]} 25. Rec1 {[%clk 0:00:25.6]} 25... Rxd4 {[%clk 0:00:09]} 26.
Rxc7 {[%clk 0:00:24.2]} 26... Rd5 {[%clk 0:00:02.4]} 27. Re1 {[%clk 0:00:17.8]}
27... Ne2+ {[%clk 0:00:01.7]} 28. Kf1 {[%clk 0:00:13.1]} 28... Rxe5 {[%clk
0:00:01.6]} 29. Rxa7 {[%clk 0:00:13]} 29... Bd3 {[%clk 0:00:01.5]} 30. f3 {[%clk
0:00:13.3]} 1-0

[Event "Late-Titled-Tuesday-Blitz-June-18-2024"]
[Site "Chess.com"]
[Date "2024.06.18"]
[Round "9"]
[White "RantomOpening"]
[Black "ReadySkate"]
[Result "0-1"]
[WhiteElo "2619"]
[BlackElo "2778"]
[TimeControl "180+1"]
[EndTime "15:45:33 PDT"]
[Termination "ReadySkate won on time"]

1. e4 {[%clk 0:03:00]} 1... c5 {[%clk 0:02:59.5]} 2. c3 {[%clk 0:02:58.5]} 2...
d5 {[%clk 0:02:59.4]} 3. exd5 {[%clk 0:02:58.2]} 3... Qxd5 {[%clk 0:03:00.3]} 4.
Nf3 {[%clk 0:02:58.4]} 4... Nc6 {[%clk 0:03:00.8]} 5. d4 {[%clk 0:02:58.6]} 5...
Bf5 {[%clk 0:03:00.8]} 6. Be3 {[%clk 0:02:54.6]} 6... Nf6 {[%clk 0:02:59.4]} 7.
c4 {[%clk 0:02:53.7]} 7... Qd8 {[%clk 0:02:58.9]} 8. d5 {[%clk 0:02:53.5]} 8...
Nb4 {[%clk 0:02:59.4]} 9. Na3 {[%clk 0:02:34.2]} 9... e6 {[%clk 0:02:59.3]} 10.
Qa4+ {[%clk 0:02:28.9]} 10... Qd7 {[%clk 0:02:58.2]} 11. Qxd7+ {[%clk
0:02:28.3]} 11... Nxd7 {[%clk 0:02:59.1]} 12. Nh4 {[%clk 0:02:22.6]} 12... Bg4
{[%clk 0:02:50.7]} 13. h3 {[%clk 0:02:21.7]} 13... Bh5 {[%clk 0:02:47.6]} 14. g4
{[%clk 0:02:21.5]} 14... Bg6 {[%clk 0:02:47.3]} 15. dxe6 {[%clk 0:02:20.2]}
15... fxe6 {[%clk 0:02:46.5]} 16. Nxg6 {[%clk 0:02:20.2]} 16... hxg6 {[%clk
0:02:47.4]} 17. Bg2 {[%clk 0:02:18.4]} 17... O-O-O {[%clk 0:02:46.2]} 18. O-O
{[%clk 0:02:16.2]} 18... a6 {[%clk 0:02:42.1]} 19. Rad1 {[%clk 0:02:11.1]} 19...
Be7 {[%clk 0:02:41.9]} 20. Rfe1 {[%clk 0:02:04]} 20... Bf6 {[%clk 0:02:39.3]}
21. Bf4 {[%clk 0:02:00]} 21... Bxb2 {[%clk 0:02:34.9]} 22. Nb1 {[%clk
0:01:58.6]} 22... e5 {[%clk 0:02:33.7]} 23. Bg5 {[%clk 0:01:58.1]} 23... Rdf8
{[%clk 0:02:32.6]} 24. Bxb7+ {[%clk 0:01:55.5]} 24... Kxb7 {[%clk 0:02:30.7]}
25. Rxd7+ {[%clk 0:01:55.3]} 25... Kc6 {[%clk 0:02:31.1]} 26. Rxg7 {[%clk
0:01:54.8]} 26... Rxh3 {[%clk 0:02:29.6]} 27. Rxg6+ {[%clk 0:01:54.4]} 27... Kb7
{[%clk 0:02:27.6]} 28. Rg7+ {[%clk 0:01:53.4]} 28... Kb6 {[%clk 0:02:26.8]} 29.
Kg2 {[%clk 0:01:47.7]} 29... Rhf3 {[%clk 0:02:24.2]} 30. Be3 {[%clk 0:01:44.4]}
30... Bd4 {[%clk 0:02:23]} 31. Nd2 {[%clk 0:01:44]} 31... R3f6 {[%clk
0:02:09.3]} 32. Ne4 {[%clk 0:01:40.6]} 32... R6f7 {[%clk 0:01:56]} 33. Rxf7
{[%clk 0:01:40.4]} 33... Rxf7 {[%clk 0:01:56.9]} 34. g5 {[%clk 0:01:37.9]} 34...
Rg7 {[%clk 0:01:50.3]} 35. Kf3 {[%clk 0:01:35]} 35... Rf7+ {[%clk 0:01:47.3]}
36. Kg4 {[%clk 0:01:34.6]} 36... Nd3 {[%clk 0:01:42.6]} 37. Rb1+ {[%clk
0:01:33.6]} 37... Kc6 {[%clk 0:01:34.4]} 38. g6 {[%clk 0:01:17.3]} 38... Rg7
{[%clk 0:01:34.1]} 39. Kf5 {[%clk 0:01:15.8]} 39... Nf4 {[%clk 0:01:34.5]} 40.
Bxf4 {[%clk 0:00:56.8]} 40... exf4 {[%clk 0:01:35.4]} 41. Rh1 {[%clk 0:00:56.1]}
41... f3 {[%clk 0:01:31.4]} 42. Rh7 {[%clk 0:00:55.5]} 42... Rg8 {[%clk
0:01:31.3]} 43. Nf6 {[%clk 0:00:50.8]} 43... Rf8 {[%clk 0:01:30.4]} 44. Rf7
{[%clk 0:00:50.7]} 44... Rd8 {[%clk 0:01:07.9]} 45. g7 {[%clk 0:00:49.3]} 45...
Bxf2 {[%clk 0:00:56.7]} 0-1

[Event "Late-Titled-Tuesday-Blitz-June-18-2024"]
[Site "Chess.com"]
[Date "2024.06.18"]
[Round "9"]
[White "Korchmar_Vasiliy"]
[Black "Sanyura"]
[Result "1-0"]
[WhiteElo "2644"]
[BlackElo "2537"]
[TimeControl "180+1"]
[EndTime "15:45:33 PDT"]
[Termination "Korchmar_Vasiliy won on time"]

1. d4 {[%clk 0:03:00.9]} 1... Nf6 {[%clk 0:02:28.4]} 2. Nf3 {[%clk 0:02:58.9]}
2... g6 {[%clk 0:02:28.3]} 3. Bg5 {[%clk 0:02:57.5]} 3... Bg7 {[%clk 0:02:28.7]}
4. Nbd2 {[%clk 0:02:54.9]} 4... O-O {[%clk 0:02:28.8]} 5. e3 {[%clk 0:02:55.1]}
5... d6 {[%clk 0:02:29.4]} 6. Be2 {[%clk 0:02:54.6]} 6... c6 {[%clk 0:02:29.4]}
7. O-O {[%clk 0:02:54.4]} 7... a6 {[%clk 0:02:29.7]} 8. a4 {[%clk 0:02:53.7]}
8... a5 {[%clk 0:02:27.6]} 9. c3 {[%clk 0:02:45.9]} 9... Bf5 {[%clk 0:02:25.7]}
10. Re1 {[%clk 0:02:42.1]} 10... Nbd7 {[%clk 0:02:07.8]} 11. Bc4 {[%clk
0:02:42.3]} 11... Ne4 {[%clk 0:01:54.1]} 12. Nxe4 {[%clk 0:02:42.4]} 12... Bxe4
{[%clk 0:01:55]} 13. Nd2 {[%clk 0:02:43]} 13... Bd5 {[%clk 0:01:34.2]} 14. Bf1
{[%clk 0:02:43.2]} 14... h6 {[%clk 0:01:29.5]} 15. Bh4 {[%clk 0:02:42.9]} 15...
g5 {[%clk 0:01:24.6]} 16. Bg3 {[%clk 0:02:42.8]} 16... e5 {[%clk 0:01:25.2]} 17.
e4 {[%clk 0:02:32.8]} 17... Be6 {[%clk 0:01:24.2]} 18. Nc4 {[%clk 0:02:33.4]}
18... Bxc4 {[%clk 0:01:16.4]} 19. Bxc4 {[%clk 0:02:34.3]} 19... Qb6 {[%clk
0:01:13]} 20. d5 {[%clk 0:02:22.7]} 20... Qxb2 {[%clk 0:00:16.8]} 21. dxc6
{[%clk 0:02:21.4]} 21... bxc6 {[%clk 0:00:17.3]} 22. Qxd6 {[%clk 0:02:22.2]}
22... Nb6 {[%clk 0:00:15.7]} 23. Ba2 {[%clk 0:01:23.7]} 23... Qxc3 {[%clk
0:00:15.6]} 24. h4 {[%clk 0:01:24.4]} 24... Qd4 {[%clk 0:00:14.9]} 25. Qxc6
{[%clk 0:01:20.7]} 25... Rac8 {[%clk 0:00:15]} 26. Qb7 {[%clk 0:01:17.4]} 26...
Nc4 {[%clk 0:00:13.8]} 27. hxg5 {[%clk 0:01:14.2]} 27... hxg5 {[%clk 0:00:14.7]}
28. Rad1 {[%clk 0:01:11.4]} 28... Qb6 {[%clk 0:00:14.9]} 29. Qe7 {[%clk
0:01:08.3]} 29... Bf6 {[%clk 0:00:12]} 30. Qd7 {[%clk 0:01:03.2]} 30... Rfd8
{[%clk 0:00:11.1]} 31. Qf5 {[%clk 0:00:56.3]} 31... Kg7 {[%clk 0:00:10.3]} 32.
Bxc4 {[%clk 0:00:47.7]} 32... Rxc4 {[%clk 0:00:08.7]} 33. Bxe5 {[%clk 0:00:48]}
33... Rxd1 {[%clk 0:00:08.2]} 34. Qxg5+ {[%clk 0:00:35.7]} 34... Kf8 {[%clk
0:00:06.2]} 35. Qh6+ {[%clk 0:00:36.1]} 35... Ke8 {[%clk 0:00:06.5]} 36. Rxd1
{[%clk 0:00:36]} 36... Qb3 {[%clk 0:00:03.8]} 37. Qd2 {[%clk 0:00:30.1]} 1-0

[Event "Late-Titled-Tuesday-Blitz-June-18-2024"]
[Site "Chess.com"]
[Date "2024.06.18"]
[Round "9"]
[White "Abund"]
[Black "yobdc"]
[Result "1-0"]
[WhiteElo "2682"]
[BlackElo "2565"]
[TimeControl "180+1"]
[EndTime "15:45:34 PDT"]
[Termination "Abund won by resignation"]

1. e4 {[%clk 0:03:00.9]} 1... e6 {[%clk 0:03:00.9]} 2. d4 {[%clk 0:03:00.6]}
2... d5 {[%clk 0:03:01.6]} 3. Nd2 {[%clk 0:03:01.2]} 3... dxe4 {[%clk
0:03:01.8]} 4. Nxe4 {[%clk 0:03:01.3]} 4... Bd7 {[%clk 0:03:02.7]} 5. Nf3 {[%clk
0:02:54.7]} 5... Bc6 {[%clk 0:03:03]} 6. Bd3 {[%clk 0:02:54.7]} 6... Nd7 {[%clk
0:03:03.5]} 7. c3 {[%clk 0:02:54.8]} 7... Ngf6 {[%clk 0:03:03.7]} 8. Nxf6+
{[%clk 0:02:55.3]} 8... Nxf6 {[%clk 0:03:03.3]} 9. O-O {[%clk 0:02:54.2]} 9...
Bxf3 {[%clk 0:03:03.3]} 10. Qxf3 {[%clk 0:02:54.7]} 10... c6 {[%clk 0:03:04]}
11. Qd1 {[%clk 0:02:50.1]} 11... Be7 {[%clk 0:03:04.2]} 12. Be2 {[%clk
0:02:50.6]} 12... O-O {[%clk 0:03:04.1]} 13. Bf3 {[%clk 0:02:50.9]} 13... Qa5
{[%clk 0:03:03.8]} 14. Re1 {[%clk 0:02:41.9]} 14... Rad8 {[%clk 0:03:03.1]} 15.
Qe2 {[%clk 0:02:38.1]} 15... Rd7 {[%clk 0:03:00.1]} 16. Be3 {[%clk 0:02:16.5]}
16... Nd5 {[%clk 0:02:58.8]} 17. Bd2 {[%clk 0:02:16]} 17... Qc7 {[%clk
0:02:56.1]} 18. g3 {[%clk 0:02:14.9]} 18... Rfd8 {[%clk 0:02:45.9]} 19. Rad1
{[%clk 0:02:09]} 19... Bf8 {[%clk 0:02:45]} 20. Bg5 {[%clk 0:02:07.5]} 20... Be7
{[%clk 0:02:44.1]} 21. Bc1 {[%clk 0:02:06.5]} 21... Bf8 {[%clk 0:02:44.1]} 22.
h4 {[%clk 0:02:01.9]} 22... c5 {[%clk 0:02:35.3]} 23. Kg2 {[%clk 0:01:57.3]}
23... cxd4 {[%clk 0:02:29]} 24. Rxd4 {[%clk 0:01:57.5]} 24... Nf6 {[%clk
0:02:26]} 25. Be3 {[%clk 0:01:51.1]} 25... Bc5 {[%clk 0:02:22.2]} 26. Rc4 {[%clk
0:01:50.6]} 26... b6 {[%clk 0:01:36.8]} 27. b4 {[%clk 0:01:49.3]} 27... Nd5
{[%clk 0:01:28.1]} 28. bxc5 {[%clk 0:01:42.3]} 28... b5 {[%clk 0:01:23]} 29.
Bxd5 {[%clk 0:01:30.3]} 29... bxc4 {[%clk 0:01:19.1]} 30. Bxc4 {[%clk
0:01:31.2]} 30... h6 {[%clk 0:01:04.6]} 31. Qf3 {[%clk 0:01:30.5]} 31... Rc8
{[%clk 0:01:01.1]} 32. Rb1 {[%clk 0:01:28.5]} 32... Qa5 {[%clk 0:00:58.3]} 33.
Bd4 {[%clk 0:01:23]} 33... e5 {[%clk 0:00:54.3]} 34. Qf5 {[%clk 0:01:02.1]}
34... Qc7 {[%clk 0:00:23.2]} 35. Be3 {[%clk 0:00:50.5]} 35... Rcd8 {[%clk
0:00:16.6]} 36. h5 {[%clk 0:00:46.6]} 36... Rd1 {[%clk 0:00:13.1]} 37. Rxd1
{[%clk 0:00:38.2]} 37... Rxd1 {[%clk 0:00:14]} 38. Bd3 {[%clk 0:00:34.8]} 38...
Qc6+ {[%clk 0:00:12.6]} 39. Be4 {[%clk 0:00:35.2]} 39... Qe6 {[%clk 0:00:12]}
40. Qxe6 {[%clk 0:00:34.4]} 40... fxe6 {[%clk 0:00:12.9]} 41. c6 {[%clk
0:00:35]} 41... Rd8 {[%clk 0:00:12.2]} 42. Bxa7 {[%clk 0:00:33.7]} 42... Rc8
{[%clk 0:00:11.1]} 43. Bb6 {[%clk 0:00:34]} 43... Kf7 {[%clk 0:00:10.8]} 44. c7
{[%clk 0:00:34.6]} 44... Ke7 {[%clk 0:00:11]} 45. a4 {[%clk 0:00:35.3]} 45...
Kd7 {[%clk 0:00:11.9]} 46. a5 {[%clk 0:00:36]} 1-0